fUSD/lending_fUSD_20250325
["ID","MTS","AMOUNT","RATE_DAILY","PERIOD"]
[356677140,1742941112756,-500.0,0.00048064,120]
[356677141,1742941112788,-500.0,0.00048064,120]
[356677142,1742941112822,-837.0,0.00048065,30]
[356677143,1742941112856,-505.22701037,0.00048106,30]
[356677144,1742941112890,-500.0,0.00048118,120]
[356677145,1742941112926,-500.0,0.00048118,120]
[356677146,1742941112960,-812.54,0.00048118,120]
[356677147,1742941112994,-500.0,0.00048118,120]
[356677148,1742941113029,-476.68762774,0.00048118,120]
[356677149,1742941113070,-500.0,0.00048118,120]
[356677150,1742941113111,-500.0,0.00048118,120]
[356677151,1742941113149,-500.0,0.00048118,120]
[356677152,1742941113190,-500.0,0.00048118,120]
[356677153,1742941113227,-500.0,0.00048118,120]
[356677154,1742941113266,-500.0,0.00048118,120]
[356677155,1742941113307,-500.0,0.00048118,120]
[356677156,1742941113348,-500.0,0.00048118,120]
[356677157,1742941113391,-500.0,0.00048118,120]
[356677158,1742941113428,-500.0,0.00048118,120]
[356677159,1742941113466,-627.23,0.00048118,120]
[356677160,1742941113501,-500.0,0.00048118,120]
[356677161,1742941113538,-500.0,0.00048118,120]
[356677162,1742941113574,-1688.15,0.00048118,120]
[356677163,1742941113611,-500.0,0.00048118,120]
[356677164,1742941113648,-500.0,0.00048118,120]
[356677165,1742941113824,-500.0,0.00048118,120]
[356677166,1742941113859,-582.91674763,0.00048118,120]
[356677167,1742941113896,-150.0,0.00048149,30]
[356677168,1742941113932,-150.0,0.00048188,30]
[356677169,1742941113968,-12993.07129766,0.000482,30]
[356677170,1742941114008,-539.52,0.00048219,120]
[356677171,1742941114044,-500.0,0.00048219,120]
[356677172,1742941114082,-506.75837592,0.00048219,120]
[356677173,1742941114120,-1894.58,0.00048219,120]
[356677174,1742941114159,-500.0,0.00048219,30]
[356677175,1742941114196,-500.0,0.00048219,120]
[356677176,1742941114233,-503.05558928,0.00048219,120]
[356677177,1742941114270,-500.0,0.00048219,120]
[356677178,1742941114308,-500.0,0.00048219,120]
[356677179,1742941114346,-500.0,0.00048219,120]
[356677180,1742941114382,-500.0,0.00048219,120]
[356677181,1742941114416,-946.67,0.00048219,120]
[356677182,1742941114452,-1717.0,0.00048219,120]
[356677183,1742941114487,-412.21379494,0.00048219,120]
[356677184,1742941114521,-1181.8,0.00048219,120]
[356677185,1742941114555,-500.0,0.00048219,120]
[356677186,1742941114588,-500.0,0.00048219,120]
[356677187,1742941114621,-500.0,0.00048219,120]
[356677188,1742941114654,-500.0,0.00048219,120]
[356677189,1742941114686,-5226.23,0.00048219,120]
[356677190,1742941114719,-766.19,0.00048219,100]
[356677191,1742941114754,-500.0,0.00048219,120]
[356677192,1742941114788,-1071.79,0.00048219,120]
[356677193,1742941114822,-1018.86,0.00048219,120]
[356677194,1742941114857,-4775.75,0.00048219,120]
[356677195,1742941114891,-840.81,0.00048219,120]
[356677196,1742941114925,-688.21,0.00048219,120]
[356677197,1742941114964,-500.0,0.00048219,120]
[356677198,1742941114998,-554.09,0.00048219,30]
[356677199,1742941115034,-1472.34,0.00048219,120]
[356677200,1742941115070,-600.66,0.00048219,120]
[356677201,1742941115105,-500.0,0.00048219,120]
[356677202,1742941115143,-1500.0,0.00048219,120]
[356677203,1742941115184,-500.0,0.00048219,120]
[356677204,1742941115225,-2173.64,0.00048219,120]
[356677205,1742941115262,-500.0,0.00048219,120]
[356677206,1742941115299,-150.0,0.00048246,30]
[356677207,1742941115333,-150.0,0.00048343,30]
[356677208,1742941115373,-300.0,0.00048356,30]
[356677209,1742941115407,-500.0,0.00048392,120]
[356677210,1742941115444,-500.0,0.00048392,120]
[356677211,1742941115477,-812.54,0.00048392,120]
[356677212,1742941115513,-500.0,0.00048392,120]
[356677213,1742941115545,-500.0,0.00048392,120]
[356677214,1742941115578,-500.0,0.00048392,120]
[356677215,1742941115611,-500.0,0.00048392,120]
[356677216,1742941115643,-221.31163003,0.00048392,120]
[356677217,1742941115677,-500.0,0.00048392,120]
[356677218,1742941115710,-500.0,0.00048392,120]
[356677219,1742941115742,-500.0,0.00048392,120]
[356677220,1742941115773,-500.0,0.00048392,120]
[356677221,1742941115806,-500.0,0.00048392,120]
[356677222,1742941115839,-500.0,0.00048392,120]
[356677223,1742941115874,-627.23,0.00048392,120]
[356677224,1742941115908,-500.0,0.00048392,120]
[356677225,1742941115942,-500.0,0.00048392,120]
[356677226,1742941115975,-1688.15,0.00048392,120]
[356677227,1742941116013,-500.0,0.00048392,120]
[356677228,1742941116047,-500.0,0.00048392,120]
[356677229,1742941116080,-500.0,0.00048392,120]
[356677230,1742941116116,-1000.0,0.00048402,120]
[356677231,1742941116148,-159.79,0.0004842,30]
[356677232,1742941116182,-150.0,0.0004844,30]
[356677233,1742941116216,-2500.0,0.0004844,31]
[356677234,1742941116249,-150.0,0.00048488,30]
[356677235,1742941116283,-150.0,0.00048488,30]
[356677236,1742941116321,-150.0,0.00048488,30]
[356677237,1742941116355,-539.52,0.00048493,120]
[356677238,1742941116390,-500.0,0.00048493,120]
[356677239,1742941116423,-1894.58,0.00048493,120]
[356677240,1742941116457,-500.0,0.00048493,30]
[356677241,1742941116490,-500.24,0.00048493,120]
[356677242,1742941116523,-500.0,0.00048493,120]
[356677243,1742941116554,-500.0,0.00048493,120]
[356677244,1742941116587,-500.0,0.00048493,120]
[356677245,1742941116620,-500.0,0.00048493,120]
[356677246,1742941116654,-946.67,0.00048493,120]
[356677247,1742941116687,-1717.0,0.00048493,120]
[356677248,1742941116720,-1181.8,0.00048493,120]
[356677249,1742941116761,-500.0,0.00048493,120]
[356677250,1742941116794,-500.0,0.00048493,120]
[356677251,1742941116831,-500.0,0.00048493,120]
[356677252,1742941116864,-500.0,0.00048493,120]
[356677253,1742941116897,-5226.23,0.00048493,120]
[356677254,1742941116931,-766.19,0.00048493,100]
[356677255,1742941116964,-500.0,0.00048493,120]
[356677256,1742941116998,-1071.79,0.00048493,120]
[356677257,1742941117032,-1018.86,0.00048493,120]
[356677258,1742941117074,-4775.75,0.00048493,120]
[356677259,1742941117116,-840.81,0.00048493,120]
[356677260,1742941117304,-688.21,0.00048493,120]
[356677261,1742941117340,-500.0,0.00048493,120]
[356677262,1742941117376,-554.09,0.00048493,30]
[356677263,1742941117410,-1472.34,0.00048493,120]
[356677266,1742941117445,-600.66,0.00048493,120]
[356677267,1742941117478,-500.0,0.00048493,120]
[356677268,1742941117512,-1500.0,0.00048493,120]
[356677269,1742941117545,-500.0,0.00048493,120]
[356677270,1742941117579,-2173.64,0.00048493,120]
[356677271,1742941117614,-500.0,0.00048493,120]
[356677272,1742941117646,-505.22701037,0.00048513,32]
[356677273,1742941117680,-150.0,0.00048537,30]
[356677274,1742941117718,-150.0,0.00048542,120]
[356677275,1742941117754,-3000.0,0.0004855,30]
[356677276,1742941117788,-837.0,0.0004855,30]
[356677277,1742941117822,-293.04508185,0.0004855,30]
[356677278,1742941117856,-500.0,0.00048551,120]
[356677279,1742941117889,-500.0,0.00048612,120]
[356677280,1742941117930,-500.0,0.00048612,120]
[356677281,1742941117964,-150.0,0.00048633,30]
[356677283,1742941117997,-2500.0,0.0004865,31]
[356677284,1742941118032,-500.0,0.00048666,120]
[356677285,1742941118069,-500.0,0.00048666,120]
[356677286,1742941118105,-812.54,0.00048666,120]
[356677287,1742941118140,-500.0,0.00048666,120]
[356677288,1742941118177,-500.0,0.00048666,120]
[356677289,1742941118212,-500.0,0.00048666,120]
[356677290,1742941118246,-597.023368,0.00048666,120]
[356677291,1742941118280,-219.83393832,0.00048666,120]
[356677292,1742941118317,-482.86029376,0.00048666,120]
[356677293,1742941118358,-500.0,0.00048666,120]
[356677294,1742941118393,-500.0,0.00048666,120]
[356677295,1742941118427,-500.0,0.00048666,120]
[356677296,1742941118461,-500.0,0.00048666,120]
[356677297,1742941118494,-627.23,0.00048666,120]
[356677298,1742941118527,-500.0,0.00048666,120]
[356677299,1742941118559,-500.0,0.00048666,120]
[356677300,1742941118591,-1688.15,0.00048666,120]
[356677301,1742941118624,-500.0,0.00048666,120]
[356677302,1742941118660,-500.0,0.00048666,120]
[356677303,1742941118695,-500.0,0.00048666,120]
[356677304,1742941118735,-1291.21,0.00048685,90]
[356677305,1742941118769,-1460.13,0.000487,120]
[356677306,1742941118802,-150.0,0.0004873,30]
[356677307,1742941118837,-539.52,0.00048767,120]
[356677308,1742941118871,-500.0,0.00048767,120]
[356677309,1742941118903,-1894.58,0.00048767,120]
[356677310,1742941118937,-500.0,0.00048767,120]
[356677311,1742941118971,-500.0,0.00048767,120]
[356677312,1742941119004,-500.0,0.00048767,120]
[356677313,1742941119039,-500.0,0.00048767,120]
[356677314,1742941119074,-946.67,0.00048767,120]
[356677315,1742941119110,-1717.0,0.00048767,120]
[356677316,1742941119153,-1181.8,0.00048767,120]
[356677317,1742941119193,-500.0,0.00048767,120]
[356677318,1742941119231,-500.0,0.00048767,120]
[356677319,1742941119276,-500.0,0.00048767,120]
[356677320,1742941119317,-500.0,0.00048767,120]
[356677321,1742941119353,-5226.23,0.00048767,120]
[356677322,1742941119388,-766.19,0.00048767,100]
[356677323,1742941119421,-500.0,0.00048767,120]
[356677324,1742941119455,-1071.79,0.00048767,120]
[356677325,1742941119489,-1018.86,0.00048767,120]
[356677326,1742941119524,-4775.75,0.00048767,120]
[356677327,1742941119560,-840.81,0.00048767,120]
[356677328,1742941119594,-688.21,0.00048767,120]
[356677329,1742941119633,-500.0,0.00048767,120]
[356677330,1742941119666,-554.09,0.00048767,30]
[356677331,1742941119699,-1472.34,0.00048767,120]
[356677332,1742941119738,-600.66,0.00048767,120]
[356677333,1742941119774,-500.0,0.00048767,120]
[356677334,1742941119809,-1500.0,0.00048767,120]
[356677335,1742941119843,-440.92,0.00048767,120]
[356677336,1742941119876,-2173.64,0.00048767,120]
[356677337,1742941119911,-500.0,0.00048767,120]
[356677338,1742941119946,-150.0,0.00048789,30]
[356677339,1742941119981,-1627.44578548,0.000488,120]
[356677340,1742941120014,-1732.00176868,0.000488,120]
[356677341,1742941120050,-3466.99974138,0.000488,120]
[356677342,1742941120093,-375978.5005968,0.000488,120]
[356677343,1742941120132,-150.0,0.00048827,30]
[356677344,1742941120169,-559.45641511,0.00048863,59]
[356677345,1742941120205,-6856.39965975,0.00048883,59]
[356677346,1742941120240,-559.45641511,0.00048883,59]
[356677347,1742941120274,-199.03345463,0.00048898,120]
[356677348,1742941120312,-159.16,0.000489,45]
[356677349,1742941120351,-159.16,0.000489,45]
[356677350,1742941120384,-505.22701037,0.00048921,34]
[356677351,1742941120419,-150.0,0.00048924,30]
[356677352,1742941120452,-871.99418138,0.00048938,59]
[356677353,1742941120485,-500.0,0.0004894,120]
[356677354,1742941120520,-812.54,0.0004894,120]
[356677355,1742941120553,-500.0,0.0004894,120]
[356677356,1742941120587,-500.0,0.0004894,120]
[356677357,1742941120625,-500.0,0.0004894,120]
[356677358,1742941120814,-500.0,0.0004894,120]
[356677359,1742941120849,-500.0,0.0004894,120]
[356677360,1742941120885,-500.0,0.0004894,120]
[356677361,1742941120918,-500.0,0.0004894,120]
[356677362,1742941120952,-627.23,0.0004894,120]
[356677363,1742941120986,-500.0,0.0004894,120]
[356677364,1742941121020,-500.0,0.0004894,120]
[356677365,1742941121056,-1688.15,0.0004894,120]
[356677366,1742941121091,-500.0,0.0004894,120]
[356677367,1742941121130,-500.0,0.0004894,120]
[356677368,1742941121164,-500.0,0.0004894,120]
[356677369,1742941121198,-6856.39965975,0.00048948,59]
[356677370,1742941121232,-220.85771514,0.00048949,59]
[356677371,1742941121265,-1000.0,0.0004896,35]
[356677372,1742941121299,-6856.39965975,0.00048962,59]
[356677373,1742941121334,-559.45641511,0.00048967,59]
[356677374,1742941121369,-871.99418138,0.00048974,59]
[356677375,1742941121403,-150.0,0.00048989,30]
[356677376,1742941121437,-1000.0,0.00048999,120]
[356677377,1742941121470,-544.89752356,0.00048999,59]
[356677378,1742941121506,-50000.0,0.00049,49]
[356677379,1742941121541,-124225.52000416,0.00049,41]
[356677380,1742941121573,-224.3176301,0.00049,61]
[356677381,1742941121606,-1054.76203627,0.00049,30]
[356677382,1742941121640,-1042.08408921,0.00049,30]
[356677383,1742941121675,-223.31086863,0.00049,120]
[356677384,1742941121709,-50282.44943737,0.00049,120]
[356677385,1742941121742,-423.355539,0.00049,60]
[356677386,1742941121775,-200.0,0.00049,120]
[356677387,1742941121809,-1000000.0,0.00049,120]
[356677388,1742941121846,-583930.90044435,0.00049,120]
[356677389,1742941122035,-416069.09955565,0.00049,120]
[356677390,1742941122070,-1604238.0,0.00049,120]
[356677391,1742941122106,-150.0,0.00049021,30]
[356677392,1742941122139,-200.0,0.00049028,59]
[356677393,1742941122173,-544.89752356,0.00049031,59]
[356677394,1742941122208,-837.0,0.00049036,30]
[356677395,1742941122246,-539.52,0.00049041,120]
[356677396,1742941122283,-500.0,0.00049041,120]
[356677397,1742941122320,-1894.58,0.00049041,120]
[356677398,1742941122356,-500.0,0.00049041,120]
[356677399,1742941122389,-500.0,0.00049041,120]
[356677400,1742941122423,-500.0,0.00049041,120]
[356677401,1742941122458,-946.67,0.00049041,120]
[356677402,1742941122492,-1717.0,0.00049041,120]
[356677403,1742941122526,-1181.8,0.00049041,120]
[356677404,1742941122560,-500.0,0.00049041,120]
[356677405,1742941122595,-500.0,0.00049041,120]
[356677406,1742941122628,-576.07994845,0.00049041,120]
[356677407,1742941122661,-493.11053682,0.00049041,120]
[356677408,1742941122697,-5226.23,0.00049041,120]
[356677409,1742941122734,-766.19,0.00049041,100]
[356677410,1742941122771,-500.0,0.00049041,120]
[356677411,1742941122808,-1071.79,0.00049041,120]
[356677412,1742941122845,-1018.86,0.00049041,120]
[356677413,1742941122881,-4775.75,0.00049041,120]
[356677415,1742941122917,-840.81,0.00049041,120]
[356677416,1742941122953,-688.21,0.00049041,120]
[356677417,1742941122987,-160.12834889,0.00049041,120]
[356677418,1742941123020,-554.09,0.00049041,30]
[356677419,1742941123055,-1472.34,0.00049041,120]
[356677420,1742941123089,-600.66,0.00049041,120]
[356677421,1742941123125,-500.0,0.00049041,120]
[356677422,1742941123160,-1500.0,0.00049041,120]
[356677423,1742941123197,-2173.64,0.00049041,120]
[356677424,1742941123232,-500.0,0.00049041,120]
[356677425,1742941123268,-871.99418138,0.00049073,59]
[356677426,1742941123303,-220.85771514,0.00049077,59]
[356677427,1742941123337,-220.85771514,0.00049084,59]
[356677428,1742941123377,-220.85771514,0.00049085,59]
[356677429,1742941123412,-544.89752356,0.00049089,59]
[356677430,1742941123447,-150.0,0.00049089,30]
[356677431,1742941123481,-222.0,0.0004909,30]
[356677432,1742941123520,-216.0,0.0004909,30]
[356677433,1742941123556,-211.0,0.0004909,30]
[356677434,1742941123590,-500.0,0.00049099,120]
[356677435,1742941123623,-6856.39965975,0.00049115,59]
[356677436,1742941123654,-871.99418138,0.00049115,59]
[356677437,1742941123686,-150.0,0.00049118,30]
[356677438,1742941123719,-559.45641511,0.00049122,59]
[356677439,1742941123754,-544.89752356,0.00049133,59]
[356677440,1742941123787,-500.0,0.0004916,120]
[356677441,1742941123821,-70158.59,0.000492,60]
[356677442,1742941123859,-203.97,0.00049214,120]
[356677443,1742941123892,-812.54,0.00049214,120]
[356677444,1742941123925,-500.0,0.00049214,120]
[356677445,1742941124085,-500.0,0.00049214,120]
[356677446,1742941124126,-500.0,0.00049214,120]
[356677447,1742941124168,-500.0,0.00049214,120]
[356677448,1742941124204,-500.0,0.00049214,120]
[356677449,1742941124241,-309.23430322,0.00049214,120]
[356677450,1742941124276,-500.0,0.00049214,120]
[356677451,1742941124312,-627.23,0.00049214,120]
[356677452,1742941124348,-500.0,0.00049214,120]
[356677453,1742941124386,-500.0,0.00049214,120]
[356677454,1742941124423,-1688.15,0.00049214,120]
[356677455,1742941124457,-500.0,0.00049214,120]
[356677456,1742941124491,-500.0,0.00049214,120]
[356677457,1742941124524,-500.0,0.00049214,120]
[356677458,1742941124556,-150.0,0.00049215,30]
[356677459,1742941124589,-150.0,0.00049239,30]
[356677460,1742941124624,-150.0,0.00049312,30]
[356677461,1742941124657,-2145.38,0.00049315,30]
[356677462,1742941124691,-331.34876177,0.00049315,120]
[356677463,1742941124725,-539.52,0.00049315,120]
[356677464,1742941124761,-500.0,0.00049315,120]
[356677465,1742941124794,-500.0,0.00049315,120]
[356677466,1742941124827,-500.0,0.00049315,120]
[356677467,1742941124858,-500.0,0.00049315,120]
[356677468,1742941124890,-500.0,0.00049315,120]
[356677469,1742941124924,-276.08750264,0.00049315,120]
[356677470,1742941124958,-1894.58,0.00049315,120]
[356677471,1742941124993,-500.0,0.00049315,120]
[356677472,1742941125027,-500.0,0.00049315,120]
[356677473,1742941125065,-500.0,0.00049315,120]
[356677474,1742941125102,-946.67,0.00049315,120]
[356677475,1742941125140,-1717.0,0.00049315,120]
[356677476,1742941125176,-1181.8,0.00049315,120]
[356677477,1742941125213,-500.0,0.00049315,120]
[356677478,1742941125247,-500.0,0.00049315,120]
[356677479,1742941125282,-5226.23,0.00049315,120]
[356677480,1742941125318,-766.19,0.00049315,100]
[356677481,1742941125353,-500.0,0.00049315,120]
[356677482,1742941125387,-1071.79,0.00049315,120]
[356677483,1742941125422,-1018.86,0.00049315,120]
[356677484,1742941125456,-4775.75,0.00049315,120]
[356677485,1742941125489,-840.81,0.00049315,120]
[356677486,1742941125525,-688.21,0.00049315,120]
[356677487,1742941125558,-554.09,0.00049315,30]
[356677488,1742941125590,-1472.34,0.00049315,120]
[356677489,1742941125624,-600.66,0.00049315,120]
[356677490,1742941125657,-269.76,0.00049315,120]
[356677491,1742941125691,-1500.0,0.00049315,120]
[356677492,1742941125724,-2173.64,0.00049315,120]
[356677493,1742941125764,-500.0,0.00049315,120]
[356677494,1742941125802,-1561.55154534,0.00049315,120]
[356677495,1742941125838,-236.70653383,0.00049315,60]
[356677496,1742941125882,-150.0,0.00049389,30]
[356677497,1742941125920,-150.0,0.00049409,30]
[356677498,1742941125956,-812.54,0.00049488,120]
[356677499,1742941125993,-547.66589831,0.00049488,120]
[356677500,1742941126029,-500.0,0.00049488,120]
[356677501,1742941126066,-500.0,0.00049488,120]
[356677502,1742941126101,-500.0,0.00049488,120]
[356677503,1742941126137,-500.0,0.00049488,120]
[356677504,1742941126173,-500.0,0.00049488,120]
[356677505,1742941126208,-627.23,0.00049488,120]
[356677506,1742941126243,-500.0,0.00049488,120]
[356677507,1742941126277,-500.0,0.00049488,120]
[356677508,1742941126310,-1688.15,0.00049488,120]
[356677509,1742941126344,-500.0,0.00049488,120]
[356677510,1742941126381,-500.0,0.00049488,120]
[356677511,1742941126414,-500.0,0.00049488,120]
[356677512,1742941126449,-150.0,0.00049489,30]
[356677513,1742941126482,-1000000.0,0.000495,120]
[356677514,1742941126513,-151.0,0.000495,120]
[356677515,1742941126545,-151.0,0.000495,120]
[356677516,1742941126576,-2000.0,0.000495,120]
[356677517,1742941126607,-2000.0,0.000495,120]
[356677518,1742941126639,-2000.0,0.000495,120]
[356677519,1742941126671,-2000.0,0.000495,120]
[356677520,1742941126704,-2000.0,0.000495,120]
[356677521,1742941126739,-2000.0,0.000495,120]
[356677522,1742941126771,-338.590833,0.000495,120]
[356677523,1742941126806,-150.0,0.00049506,30]
[356677524,1742941126839,-837.0,0.00049521,30]
[356677525,1742941126871,-3000.0,0.0004953,30]
[356677526,1742941126902,-539.52,0.00049589,120]
[356677527,1742941126934,-500.0,0.00049589,120]
[356677528,1742941126967,-1894.58,0.00049589,120]
[356677529,1742941126998,-500.0,0.00049589,120]
[356677530,1742941127035,-206.011933,0.00049589,120]
[356677531,1742941127067,-500.0,0.00049589,120]
[356677532,1742941127102,-500.0,0.00049589,120]
[356677533,1742941127136,-946.67,0.00049589,120]
[356677534,1742941127171,-1717.0,0.00049589,120]
[356677535,1742941127205,-1181.8,0.00049589,120]
[356677536,1742941127241,-500.0,0.00049589,120]
[356677537,1742941127277,-500.0,0.00049589,120]
[356677538,1742941127313,-5226.23,0.00049589,120]
[356677539,1742941127345,-766.19,0.00049589,100]
[356677540,1742941127491,-500.0,0.00049589,120]
[356677541,1742941127528,-1071.79,0.00049589,120]
[356677542,1742941127564,-1018.86,0.00049589,120]
[356677543,1742941127599,-4775.75,0.00049589,120]
[356677544,1742941127632,-840.81,0.00049589,120]
[356677545,1742941127666,-688.21,0.00049589,120]
[356677546,1742941127700,-554.09,0.00049589,30]
[356677547,1742941127740,-1472.34,0.00049589,120]
[356677548,1742941127775,-600.66,0.00049589,120]
[356677549,1742941127808,-573.1330928,0.00049589,120]
[356677550,1742941127842,-2173.64,0.00049589,120]
[356677551,1742941127874,-500.0,0.00049589,120]
[356677552,1742941127909,-150.0,0.00049602,30]
[356677553,1742941127941,-500.0,0.00049647,120]
[356677554,1742941127976,-150.0,0.0004969,30]
[356677555,1742941128009,-150.0,0.00049699,30]
[356677556,1742941128044,-500.0,0.00049708,120]
[356677557,1742941128078,-812.54,0.00049762,120]
[356677558,1742941128113,-500.0,0.00049762,120]
[356677559,1742941128148,-500.0,0.00049762,120]
[356677560,1742941128182,-569.28026686,0.00049762,120]
[356677561,1742941128218,-500.0,0.00049762,120]
[356677562,1742941128257,-500.0,0.00049762,120]
[356677563,1742941128294,-627.23,0.00049762,120]
[356677564,1742941128331,-500.0,0.00049762,120]
[356677565,1742941128373,-500.0,0.00049762,120]
[356677566,1742941128412,-1688.15,0.00049762,120]
[356677567,1742941128451,-500.0,0.00049762,120]
[356677568,1742941128492,-500.0,0.00049762,120]
[356677569,1742941128529,-592.68,0.00049762,120]
[356677570,1742941128565,-150.0,0.00049796,30]
[356677571,1742941128601,-3000.0,0.0004986,30]
[356677572,1742941128637,-539.52,0.00049863,120]
[356677573,1742941128673,-500.0,0.00049863,120]
[356677574,1742941128707,-1894.58,0.00049863,120]
[356677575,1742941128744,-500.0,0.00049863,120]
[356677576,1742941128777,-500.0,0.00049863,120]
[356677577,1742941128810,-500.0,0.00049863,120]
[356677578,1742941128844,-946.67,0.00049863,120]
[356677579,1742941128879,-1717.0,0.00049863,120]
[356677580,1742941128917,-1181.8,0.00049863,120]
[356677581,1742941128953,-500.0,0.00049863,120]
[356677582,1742941128986,-500.0,0.00049863,120]
[356677583,1742941129030,-5226.23,0.00049863,120]
[356677584,1742941129073,-766.19,0.00049863,100]
[356677585,1742941129116,-500.0,0.00049863,120]
[356677586,1742941129155,-1071.79,0.00049863,120]
[356677587,1742941129199,-1018.86,0.00049863,120]
[356677588,1742941129247,-4775.75,0.00049863,120]
[356677589,1742941129284,-840.81,0.00049863,120]
[356677590,1742941129320,-688.21,0.00049863,120]
[356677591,1742941129355,-554.09,0.00049863,30]
[356677592,1742941129390,-1472.34,0.00049863,120]
[356677593,1742941129426,-600.66,0.00049863,120]
[356677594,1742941129461,-2173.64,0.00049863,120]
[356677595,1742941129495,-500.0,0.00049863,120]
[356677596,1742941129529,-150.0,0.00049893,30]
[356677597,1742941129562,-150.0,0.00049912,120]
[356677598,1742941129595,-150.0,0.0004999,30]
[356677599,1742941129628,-150.0,0.0004999,30]
[356677600,1742941129662,-150.0,0.0004999,30]
[356677601,1742941129696,-191.56551694,0.0004999,30]
[356677602,1742941129732,-1000.0,0.00049999,120]
[356677603,1742941129769,-50000.0,0.0005,50]
[356677604,1742941129804,-1516.64459803,0.0005,120]
[356677605,1742941129839,-212.43010389,0.0005,120]
[356677606,1742941129872,-8173.53,0.0005,120]
[356677607,1742941129907,-1000000.0,0.0005,120]
[356677608,1742941129941,-654660.99056684,0.0005,120]
[356677612,1742941142590,-500.0,0.00045263,120]
[356677613,1742941142625,-199.452,0.00046359,76]
[356677614,1742941142794,-908.17,0.00046359,76]
[356677615,1742941142832,-500.0,0.00046575,120]
[356677616,1742941142867,-500.0,0.00046849,120]
[356677617,1742941142903,-2395.36,0.00047022,120]
[356677618,1742941142938,-500.0,0.00047123,120]
[356677619,1742941142975,-2395.36,0.00047296,120]
[356677620,1742941143010,-500.0,0.00047397,120]
[356677621,1742941143054,-2395.36,0.0004757,120]
[356677622,1742941143095,-500.0,0.00047671,120]
[356677623,1742941143147,-2395.36,0.00047844,120]
[356677624,1742941143189,-510.44152605,0.00047945,120]
[356677625,1742941143233,-222.25276884,0.00048,120]
[356677626,1742941143276,-2395.36,0.00048118,120]
[356677627,1742941143318,-2395.36,0.00048392,120]
[356677628,1742941143363,-2395.36,0.00048666,120]
[356677629,1742941143406,-2395.36,0.0004894,120]
[356677630,1742941143449,-124225.52000416,0.00049,41]
[356677631,1742941143492,-2395.36,0.00049214,120]
[356677632,1742941143531,-500.0,0.000494,120]
[356677633,1742941143570,-2395.36,0.00049488,120]
[356677634,1742941143609,-2395.36,0.00049762,120]
[356677635,1742941143662,-345339.00943316,0.0005,120]
[356677636,1742941143702,-161.72766034,0.0005,120]
[356677637,1742941143747,-171.0,0.0005,120]
[356677638,1742941143787,-1059.79294578,0.0005,120]
[356677639,1742941143824,-153.62171459,0.0005,120]
[356677640,1742941143861,-10000.0,0.0005,120]
[356677641,1742941143901,-1000.0,0.0005,120]
[356677642,1742941143936,-5000.0,0.0005,120]
[356677643,1742941143973,-1689.96571542,0.0005,30]
[356677644,1742941144011,-162.83131202,0.0005,120]
[356677645,1742941144050,-470.4323304,0.0005,120]
[356677646,1742941144088,-258.5,0.0005,120]